bitfinex/quotes_SOLUSD_20251124
["timestamp","ask_amount","ask_price","bid_price","bid_amount"]
[1763954780783,3.00183446,134.0,133.97,60.02813989]
[1763954781350,3.00183446,133.99,133.97,60.02813989]
[1763954781882,3.65183446,134.0,133.97,60.02813989]
[1763954782574,3.00183446,133.99,133.97,60.02813989]
[1763954783090,3.65183446,134.0,133.97,60.02813989]
[1763954787395,3.00183446,133.99,133.97,60.02813989]
[1763954790591,3.65183446,133.99,133.97,60.02813989]
[1763954790793,3.00183446,133.99,133.97,60.02813989]
[1763954791098,3.65183446,133.99,133.97,60.02813989]
[1763954791605,3.00183446,133.99,133.97,60.71813989]
[1763954791900,3.00183446,134.0,133.97,60.71813989]
[1763954792891,3.65183446,134.0,133.97,60.71813989]
[1763954793081,3.65183446,134.0,133.97,60.02813989]
[1763954793987,3.00183446,133.99,133.97,60.02813989]
[1763954795373,0.15930723,133.98,133.97,60.71813989]
[1763954797197,0.15930723,133.98,133.97,60.02813989]
[1763954797403,24.93393615,133.98,133.97,60.02813989]
[1763954797787,24.93393615,133.98,133.94,60.02813989]
[1763954797984,3.00183446,133.95,133.94,60.02813989]
[1763954800380,0.65,133.97,133.94,60.02813989]
[1763954801603,0.65,133.97,133.9,60.02813989]
[1763954801809,3.00183446,133.93,133.9,63.36813989]
[1763954802111,3.00183446,133.93,133.9,64.05813989]
[1763954802442,3.00183446,133.93,133.91,0.69]
[1763954803580,3.65183446,133.92,133.89,0.69]
[1763954803785,3.00183446,133.92,133.89,0.69]
[1763954804788,0.68,133.93,133.89,0.69]
[1763954804789,3.68183446,133.93,133.89,0.69]
[1763954804993,0.84410298,133.97,133.89,11.1604359]
[1763954805194,3.00183446,133.95,133.9,3.34]
[1763954805705,3.00183446,133.95,133.91,0.66]
[1763954805906,3.00183446,133.96,133.91,0.66]
[1763954806209,3.00183446,133.96,133.92,18.12096]
[1763954806418,3.00183446,133.96,133.92,78.14909989]
[1763954806596,3.00183446,133.96,133.93,0.66]
[1763954806802,3.00183446,133.95,133.93,0.66]
[1763954807611,3.69183446,133.94,133.92,60.02813989]
[1763954807789,3.00183446,133.93,133.92,60.02813989]
[1763954809711,3.00183446,133.94,133.92,60.68813989]
[1763954810013,3.00183446,133.94,133.92,60.02813989]
[1763954810219,3.00183446,133.94,133.92,60.68813989]
[1763954812195,3.00183446,133.93,133.92,60.02813989]
[1763954813011,3.69183446,133.93,133.92,60.02813989]
[1763954813323,3.00183446,133.93,133.92,60.02813989]
[1763954815525,3.15772016,133.93,133.92,60.02813989]
[1763954818325,3.15772016,133.93,133.92,60.68813989]
[1763954818825,0.1558857,133.93,133.92,60.68813989]
[1763954819118,0.1558857,133.93,133.92,68.15528445]
[1763954820111,0.1558857,133.93,133.92,71.15711891]
[1763954820394,0.1558857,133.93,133.92,89.27807891]
[1763954821036,0.1620793,133.97,133.95,50.0]
[1763954821206,0.1492132,134.0,133.97,53.00183446]
[1763954821412,0.1492132,134.0,133.99,21.12279446]
[1763954822017,0.1492132,134.0,133.99,21.78279446]
[1763954823625,0.1492132,134.0,133.99,29.24603798]
[1763954824203,0.1492132,134.0,133.97,0.66]
[1763954824422,3.15104766,134.0,133.98,21.44096]
[1763954824628,4.83771555,134.0,133.98,21.44096]
[1763954824806,4.83771555,134.0,133.98,3.32]
[1763954825423,4.83771555,134.0,133.98,3.98]
[1763954825899,0.1492132,134.0,133.98,10.78372196]
[1763954826103,0.1492132,134.0,133.99,0.66]
[1763954826702,0.15597525,134.02,134.01,59.71697762]
[1763954827227,0.15597525,134.02,134.01,60.37697762]
[1763954828613,0.15597525,134.02,134.01,59.71697762]
[1763954830706,5.5344776,134.02,134.01,59.71697762]
[1763954831238,4.8444776,134.02,134.01,59.71697762]
[1763954833746,5.5344776,134.02,134.01,59.71697762]
[1763954834049,4.8444776,134.02,134.01,59.71697762]
[1763954834632,5.5344776,134.02,134.01,59.71697762]
[1763954835439,5.67365337,134.02,134.01,59.71697762]
[1763954835949,4.98365337,134.02,134.01,59.71697762]
[1763954836165,0.29515102,134.02,134.01,59.71697762]
[1763954836658,0.13917577,134.02,134.01,59.71697762]
[1763954840233,0.13917577,134.02,134.01,71.17910731]
[1763954840546,0.13917577,134.02,134.01,75.86760966]
[1763954840748,0.13917577,134.02,134.01,71.17910731]
[1763954843562,0.35161268,134.04,134.03,77.55950331]
[1763954843865,0.35161268,134.04,134.03,85.56800566]
[1763954844050,0.35161268,134.04,134.03,86.24800566]
[1763954844250,0.35161268,134.04,134.03,188.99410727]
[1763954844452,0.35161268,134.04,134.03,195.70902185]
[1763954848868,0.35161268,134.04,134.03,177.58806185]
[1763954849068,0.35161268,134.04,134.03,180.57703999]
[1763954849447,0.15028861,134.08,134.06,58.80084591]
[1763954849642,0.15028861,134.08,134.06,164.12084591]
[1763954849949,4.83879096,134.08,134.06,164.12084591]
[1763954850153,4.83879096,134.08,134.06,160.80084591]
[1763954850356,4.83879096,134.08,134.06,164.12084591]
[1763954850558,5.52879096,134.08,134.06,160.80084591]
[1763954851141,1.03862116,134.07,134.06,160.80084591]
[1763954851844,5.72712351,134.07,134.06,58.80084591]
[1763954855171,1.03862116,134.07,134.06,58.80084591]
[1763954855373,0.48970486,134.07,134.06,59.48084591]
[1763954855850,0.48970486,134.07,134.06,66.94019247]
[1763954856051,0.48970486,134.07,134.06,66.26019247]
[1763954856450,0.3410837,134.07,134.06,66.94019247]
[1763954856872,0.3410837,134.07,134.06,58.80084591]
[1763954859777,1.0310837,134.07,134.06,58.80084591]
[1763954860171,0.3410837,134.07,134.06,58.80084591]
[1763954861974,0.14167651,134.08,134.07,58.45976221]
[1763954862357,0.83167651,134.08,134.07,58.45976221]
[1763954862666,0.14167651,134.08,134.07,58.45976221]
[1763954863054,0.83167651,134.08,134.07,58.45976221]
[1763954863748,0.14167651,134.08,134.07,58.45976221]
[1763954864389,0.84167651,134.08,134.07,58.45976221]
[1763954864882,0.14167651,134.08,134.07,58.45976221]
[1763954865252,0.84167651,134.08,134.07,58.45976221]
[1763954869179,5.53017886,134.08,134.07,58.45976221]
[1763954870009,5.53017886,134.08,133.98,58.45976221]
[1763954870196,4.68850235,134.02,133.98,69.94319501]
[1763954870480,4.68850235,134.02,133.98,88.06415501]
[1763954870681,5.35850235,134.02,133.99,0.7]
[1763954870900,5.35850235,134.02,133.98,88.06415501]
[1763954871060,5.35850235,134.02,133.98,87.36415501]
[1763954871284,5.35850235,134.02,133.99,0.7]
[1763954872099,5.35850235,134.02,134.01,18.12096]
[1763954872274,5.35850235,134.05,134.02,18.12096]
[1763954872475,0.67,134.05,134.02,18.82096]
[1763954872692,4.68850235,134.06,134.03,18.12096]
[1763954872880,4.68850235,134.06,134.03,18.82096]
[1763954873084,5.35850235,134.06,134.03,18.12096]
[1763954874088,5.35850235,134.06,134.03,26.2819522]
[1763954874402,0.67,134.06,134.04,18.12096]
[1763954875506,0.1601681,134.05,134.03,29.6019522]
[1763954875705,0.1601681,134.05,134.03,21.44096]
[1763954876289,0.1601681,134.05,134.03,11.48101168]
[1763954876693,0.1601681,134.05,134.03,171.94077389]
[1763954877106,0.1601681,134.05,134.03,171.24077389]
[1763954877295,0.1601681,134.05,134.03,171.94077389]
[1763954878780,4.84867045,134.05,134.03,163.77976221]
[1763954879183,5.51867045,134.05,134.03,163.77976221]
[1763954879893,0.8301681,134.05,134.03,163.77976221]
[1763954880096,4.84867045,134.05,134.03,163.77976221]
[1763954880506,4.84867045,134.05,134.03,160.45976221]
[1763954880705,0.1601681,134.05,134.03,161.15976221]
[1763954880886,0.1601681,134.05,134.03,168.62061338]
[1763954881715,0.8301681,134.05,134.03,160.45976221]
[1763954885707,0.1601681,134.05,134.03,168.62074468]
[1763954885904,0.8301681,134.05,134.03,167.92074468]
[1763954886116,0.15808581,134.06,134.05,58.29959411]
[1763954886422,0.15808581,134.06,134.05,58.99959411]
[1763954886805,0.15808581,134.06,134.05,66.45949713]
[1763954887795,0.15808581,134.06,134.05,69.45634153]
[1763954888916,0.15808581,134.06,134.05,70.20233183]
[1763954891230,0.14725781,134.08,134.07,57.99381641]
[1763954891715,0.14725781,134.08,134.07,58.69381641]
[1763954892410,0.14725781,134.08,134.07,163.69066081]
[1763954893218,0.14725781,134.08,134.07,171.14945099]
[1763954893793,0.14725781,134.08,134.07,168.15260659]
[1763954895209,0.14725781,134.08,134.07,170.77260659]
[1763954895524,0.29483585,134.08,134.07,170.77260659]
[1763954895827,0.29483585,134.08,134.07,171.49260659]
[1763954896116,0.29483585,134.08,134.07,174.48945099]
[1763954896501,0.14757804,134.08,134.07,174.48945099]
[1763954897508,0.81600697,134.1,134.09,57.6943308]
[1763954897822,0.14600697,134.1,134.09,173.46885287]
[1763954898126,0.14600697,134.1,134.09,174.18885287]
[1763954901008,0.14600697,134.1,134.09,170.47200847]
[1763954901212,0.83600697,134.1,134.09,163.0143308]
[1763954902224,0.14600697,134.1,134.09,163.0143308]
[1763954903528,0.83750887,134.11,134.1,57.54832383]
[1763954903726,0.14750887,134.11,134.1,57.54832383]
[1763954903926,0.83750887,134.11,134.1,57.54832383]
[1763954904234,3.83435327,134.11,134.1,57.54832383]
[1763954904609,3.83435327,134.11,134.03,0.72]
[1763954904829,2.9968444,134.07,134.04,3.32]
[1763954905129,2.9968444,134.08,134.04,60.14832383]
[1763954905526,0.69,134.07,134.04,60.86832383]
[1763954906731,3.6868444,134.07,134.04,60.86832383]
[1763954908615,3.6868444,134.07,134.04,57.54832383]
[1763954908807,3.6868444,134.07,134.04,60.86832383]
[1763954909011,3.6868444,134.07,134.04,57.54832383]
[1763954909328,3.6868444,134.07,134.04,60.86832383]
[1763954910032,3.6868444,134.07,134.04,57.54832383]
[1763954910330,0.83750887,134.11,134.06,2.9968444]
[1763954910636,0.14750887,134.11,134.07,3.32]
[1763954910823,3.83435327,134.11,134.08,0.72]
[1763954911135,0.14750887,134.11,134.08,0.72]
[1763954911527,0.14750887,134.11,134.09,3.32]
[1763954911730,0.14750887,134.11,134.09,60.14832383]
[1763954912514,0.14750887,134.11,134.1,0.72]
[1763954914035,0.14750887,134.11,134.1,57.54832383]
[1763954914239,0.14750887,134.11,134.1,65.00544538]
[1763954915239,0.14750887,134.11,134.1,67.99353039]
[1763954915441,0.28787742,134.11,134.1,67.99353039]
[1763954916629,0.14036855,134.11,134.1,67.99353039]
[1763954916935,0.14036855,134.11,134.1,172.99037479]
[1763954917521,0.14036855,134.11,134.1,173.31353039]
[1763954921314,0.14036855,134.11,134.1,71.31353039]
[1763954921522,0.14036855,134.11,134.1,67.99353039]
[1763954921849,0.14036855,134.11,134.1,71.31353039]
[1763954926637,0.14036855,134.11,134.1,68.32544538]
[1763954927025,0.14036855,134.11,134.1,72.06800193]
[1763954927221,0.35340585,134.13,134.12,56.34938219]
[1763954927426,1.04340585,134.13,134.12,59.66938219]
[1763954928352,0.35340585,134.13,134.12,59.66938219]
[1763954929426,0.35340585,134.13,134.12,56.34938219]
[1763954929427,1.04340585,134.13,134.12,56.34938219]
[1763954931653,0.35340585,134.13,134.12,56.34938219]
[1763954935356,1.04340585,134.13,134.12,56.34938219]
[1763954935649,4.19294262,134.13,134.09,77.79034219]
[1763954935855,3.6868444,134.12,134.09,77.79034219]
[1763954936347,0.69,134.11,134.09,77.79034219]
[1763954936932,0.35269237,134.13,134.09,88.24483251]
[1763954937138,0.35269237,134.13,134.11,2.9968444]
[1763954937358,0.35269237,134.13,134.11,6.3168444]
[1763954937528,0.35269237,134.13,134.11,3.32]
[1763954939159,0.35269237,134.13,134.11,59.66938219]
[1763954939358,0.35269237,134.13,134.11,67.12593544]
[1763954939534,0.35269237,134.13,134.11,67.83593544]
[1763954940656,0.35269237,134.13,134.12,0.71]
[1763954940954,0.83194825,134.15,134.12,0.71]
[1763954940955,0.14194825,134.15,134.14,55.6548033]
[1763954941160,0.14194825,134.15,134.14,58.9748033]
[1763954941342,0.14194825,134.15,134.14,55.6548033]
[1763954946746,0.14194825,134.15,134.14,56.3648033]
[1763954946965,0.14194825,134.15,134.14,63.81970116]
[1763954947752,0.16026441,134.17,134.16,55.35629994]
[1763954949254,0.16026441,134.17,134.16,63.52008646]
[1763954949455,0.16026441,134.17,134.16,62.81008646]
[1763954950159,0.16026441,134.17,134.16,63.52008646]
[1763954950664,0.16026441,134.17,134.16,62.81008646]
[1763954951250,0.16026441,134.17,134.16,63.52008646]
[1763954951753,0.16026441,134.17,134.16,68.19741454]
[1763954952063,0.16026441,134.17,134.16,170.19741454]
[1763954952464,0.16026441,134.17,134.16,173.51741454]
[1763954953046,0.16026441,134.17,134.16,168.84008646]
[1763954955477,0.32128747,134.17,134.16,168.84008646]
[1763954956073,0.32128747,134.17,134.16,173.51741454]
[1763954956462,0.16102306,134.17,134.16,173.51741454]
[1763954956979,0.34363255,134.18,134.17,55.19527688]
[1763954957177,0.34363255,134.18,134.17,55.91527688]
[1763954957979,5.71096063,134.18,134.17,55.19527688]
[1763954958278,0.34363255,134.18,134.17,55.19527688]
[1763954959776,5.71096063,134.18,134.17,55.19527688]
[1763954961349,5.02096063,134.18,134.17,55.19527688]
[1763954961772,5.71096063,134.18,134.17,55.19527688]
[1763954963571,0.34363255,134.18,134.17,55.19527688]
[1763954963757,5.02096063,134.18,134.17,55.19527688]
[1763954963959,5.71096063,134.18,134.17,55.19527688]
[1763954964178,5.71096063,134.18,134.12,55.91527688]
[1763954964387,4.67732808,134.14,134.12,55.91527688]
[1763954964698,4.67732808,134.13,134.12,55.19527688]
[1763954964864,4.67732808,134.13,134.1,55.19527688]
[1763954965062,5.31999999,134.17,134.1,55.19527688]
[1763954965063,4.67732808,134.11,134.1,55.19527688]
[1763954967081,5.36732808,134.11,134.1,55.19527688]
[1763954967260,5.36732808,134.11,134.07,55.19527688]
[1763954967459,4.67732808,134.08,134.07,55.19527688]
[1763954969492,0.69,134.1,134.07,55.91527688]
[1763954969493,4.67732808,134.1,134.07,55.91527688]
[1763954969694,4.67732808,134.1,134.08,0.72]
[1763954969987,4.67732808,134.1,134.07,55.19527688]
[1763954969988,4.67732808,134.09,134.07,55.91527688]
[1763954970992,4.67732808,134.13,134.08,5.39732808]
[1763954971167,4.67732808,134.09,134.06,0.72]
[1763954973684,4.67732808,134.08,134.06,0.72]
[1763954974382,4.67732808,134.09,134.06,0.72]
[1763954975475,0.14281786,134.07,134.06,0.72]
[1763954977692,0.13615759,134.08,134.07,55.05245902]
[1763954979371,0.13615759,134.08,134.07,55.77245902]
[1763954979990,0.13615759,134.08,134.07,60.4497871]
[1763954980190,0.13615759,134.08,134.07,188.77541629]
[1763954980389,0.16017412,134.09,134.07,188.02953728]
[1763954980564,0.16017412,134.09,134.08,9.46315146]
[1763954983681,0.16017412,134.09,134.08,64.51561048]
[1763954984084,0.16017412,134.09,134.08,71.97384437]
[1763954984283,0.16017412,134.09,134.08,161.8382824]
[1763954984604,0.16017412,134.09,134.08,165.7697871]
[1763954987648,0.16017412,134.09,134.08,55.05245902]
[1763954987909,0.16017412,134.09,134.08,55.75245902]
[1763954989210,0.16017412,134.09,134.08,60.4297871]
[1763954991210,0.14430128,134.1,134.09,54.8922849]
[1763954991408,0.14430128,134.1,134.09,165.58961298]
[1763954991613,0.14430128,134.1,134.09,160.9122849]
[1763954993206,0.14430128,134.1,134.09,156.8922849]
[1763954994911,0.14430128,134.1,134.09,157.5922849]
[1763954995412,0.14430128,134.1,134.09,156.8922849]
[1763954995712,0.30662653,134.1,134.09,54.8922849]
[1763954996630,0.16232525,134.1,134.09,54.8922849]
[1763955000510,0.16232525,134.1,134.09,55.5922849]
[1763955001400,0.86232525,134.1,134.09,54.8922849]
[1763955001797,0.16232525,134.1,134.09,54.8922849]
[1763955002125,0.86232525,134.1,134.09,54.8922849]
[1763955002302,5.53965333,134.1,134.07,54.8922849]
[1763955002499,4.67732808,134.08,134.07,54.8922849]
[1763955002896,5.53965333,134.1,134.07,54.8922849]
[1763955003301,0.7,134.09,134.07,54.8922849]
[1763955004113,5.37732808,134.09,134.07,54.8922849]
[1763955004615,0.7,134.08,134.07,54.8922849]
[1763955005125,5.37732808,134.08,134.07,54.8922849]
[1763955005422,0.7,134.08,134.07,54.8922849]
[1763955007321,0.7,134.08,134.07,18.12096]
[1763955007515,0.7,134.08,134.04,61.90931825]
[1763955007516,3.69703335,134.08,134.04,54.8922849]
[1763955007821,2.99703335,134.06,134.04,54.8922849]
[1763955008225,0.7,134.05,134.04,54.8922849]
[1763955008927,0.7,134.05,134.02,54.8922849]
[1763955008928,3.69703335,134.05,134.02,54.8922849]
[1763955009137,2.99703335,134.03,134.02,54.8922849]
[1763955009310,2.99703335,134.03,134.0,0.2]
[1763955009516,2.99703335,134.01,134.0,0.2]
[1763955010006,3.69703335,134.01,134.0,0.2]
[1763955013235,7.01703335,134.01,134.0,0.2]
[1763955013802,4.02,134.01,134.0,0.2]
[1763955014008,3.69703335,134.03,134.0,0.2]
[1763955014416,0.7,134.02,134.0,0.2]
[1763955015328,3.69703335,134.02,134.0,0.2]
[1763955015539,3.14096519,134.01,134.0,0.2]
[1763955015838,0.14393184,134.01,134.0,0.2]
[1763955021220,0.14393184,134.01,134.0,0.85]
[1763955021627,0.14393184,134.01,134.0,0.2]
[1763955025347,0.14393184,134.01,134.0,55.0922849]
[1763955026147,3.15910912,134.02,134.0,55.0922849]
[1763955026148,0.16207577,134.02,134.0,66.94827346]
[1763955026346,0.15275169,134.05,134.02,50.0]
[1763955026567,0.15275169,134.05,134.04,21.11799335]
[1763955026722,0.15275169,134.05,134.04,76.01027825]
[1763955026924,0.16002419,134.07,134.05,18.12096]
[1763955027124,0.16002419,134.07,134.06,18.12096]
[1763955027322,0.16002419,134.07,134.06,21.76799335]
[1763955027519,0.16002419,134.07,134.06,32.54733991]
[1763955028128,0.16002419,134.07,134.06,18.77096]
[1763955028349,0.16002419,134.07,134.06,21.76799335]
[1763955030547,0.16002419,134.07,134.06,18.77096]
[1763955030738,0.16002419,134.07,134.06,21.76799335]
[1763955031242,0.16002419,134.07,134.06,29.22733991]
[1763955035340,0.16002419,134.07,134.06,26.23030656]
[1763955035544,0.3087418,134.07,134.06,25.08799335]
[1763955035855,0.3087418,134.07,134.06,32.54733991]
[1763955036022,0.3087418,134.07,134.06,33.29327456]
[1763955036426,0.3087418,134.07,134.06,30.29624121]
[1763955036653,0.14871761,134.07,134.06,33.29327456]
[1763955037042,0.15745878,134.1,134.09,54.46546033]
[1763955037223,0.81745878,134.1,134.09,54.46546033]
[1763955038049,0.15745878,134.1,134.09,54.46546033]
[1763955038655,0.15745878,134.1,134.09,72.58642033]
[1763955038834,0.81745878,134.1,134.09,72.58642033]
[1763955041970,3.81449213,134.1,134.09,54.46546033]
[1763955043041,0.15745878,134.1,134.09,54.46546033]
[1763955043246,0.15745878,134.1,134.09,57.46249368]
[1763955044954,0.15745878,134.1,134.09,54.46546033]
[1763955045835,0.15745878,134.1,134.09,57.46249368]
[1763955046036,0.15745878,134.1,134.09,58.14249368]
[1763955046263,0.15745878,134.1,134.09,57.46249368]
[1763955047758,0.15745878,134.1,134.09,64.92017135]
[1763955047952,0.15745878,134.1,134.09,170.92017135]
[1763955053363,0.15142676,134.12,134.11,54.14536812]
[1763955053969,0.87142676,134.12,134.11,54.14536812]
[1763955055571,1.01803933,134.12,134.11,54.14536812]
[1763955056366,0.29803933,134.12,134.11,54.14536812]
[1763955056566,0.86661257,134.12,134.11,54.14536812]
[1763955058662,3.86364592,134.12,134.11,54.14536812]
[1763955060950,0.14661257,134.12,134.11,54.14536812]
[1763955061150,0.14661257,134.12,134.11,57.14240147]
[1763955061388,3.86364592,134.12,134.09,54.14536812]
[1763955061574,2.99703335,134.1,134.07,54.14536812]
[1763955061950,0.14661257,134.12,134.08,3.67703335]
[1763955062149,0.14661257,134.12,134.11,2.99703335]
[1763955062351,0.14661257,134.12,134.1,2.99703335]
[1763955062575,0.86661257,134.12,134.09,6.97703335]
[1763955062848,0.86661257,134.12,134.09,2.99703335]
[1763955063052,0.86661257,134.12,134.08,28.87905321]
[1763955063253,0.14661257,134.12,134.09,3.67703335]
[1763955063680,0.86661257,134.12,134.09,3.67703335]
[1763955064271,0.86661257,134.12,134.1,2.99703335]
[1763955064794,0.86661257,134.12,134.09,2.99703335]
[1763955065293,0.86661257,134.12,134.09,3.67703335]
[1763955065597,0.14661257,134.12,134.1,2.99703335]
[1763955065786,0.86661257,134.12,134.1,2.99703335]
[1763955066393,0.14661257,134.12,134.1,2.99703335]
[1763955066698,0.14661257,134.12,134.11,2.99703335]
[1763955067388,0.86661257,134.12,134.1,3.3]
[1763955067569,0.86661257,134.12,134.09,6.29703335]
[1763955068189,0.86661257,134.12,134.09,3.3]
[1763955068369,0.86661257,134.12,134.09,6.29703335]
[1763955068570,0.86661257,134.12,134.09,7.97981293]
[1763955069283,0.14661257,134.12,134.1,5.35981293]
[1763955069460,0.14661257,134.12,134.1,4.67981293]
[1763955070161,0.14661257,134.12,134.1,5.35981293]
[1763955070377,0.14661257,134.12,134.11,4.67981293]
[1763955071690,0.86661257,134.12,134.09,7.97981293]
[1763955072482,0.14661257,134.12,134.09,16.11731286]
[1763955072801,0.14661257,134.12,134.1,5.35981293]
[1763955073078,0.14661257,134.12,134.1,4.67981293]
[1763955073989,0.86661257,134.12,134.1,4.67981293]
[1763955074176,0.14661257,134.12,134.1,12.88257512]
[1763955074381,0.14661257,134.12,134.1,13.56257512]
[1763955074581,0.14661257,134.12,134.1,12.88257512]
[1763955074784,0.14661257,134.12,134.1,13.56257512]
[1763955074970,0.14661257,134.12,134.1,12.88257512]
[1763955075288,0.86661257,134.12,134.1,156.14536812]
[1763955075489,0.13533487,134.11,134.1,156.14536812]
[1763955075968,0.81533487,134.11,134.1,156.14536812]
[1763955076170,0.13533487,134.11,134.1,156.14536812]
[1763955077708,0.13533487,134.11,134.1,164.82518105]
[1763955078369,0.13533487,134.11,134.1,172.2823026]
[1763955078688,0.15628425,134.12,134.11,54.01003325]
[1763955078862,0.15628425,134.12,134.11,60.13550273]
[1763955079185,0.15628425,134.12,134.11,67.59206823]
[1763955079567,0.83628425,134.12,134.11,54.01003325]
[1763955079868,0.15628425,134.12,134.11,54.01003325]
[1763955081384,0.15628425,134.12,134.11,59.52182377]
[1763955081568,0.83628425,134.12,134.11,59.52182377]
[1763955081973,0.83628425,134.12,134.11,54.01003325]
[1763955084493,0.15628425,134.12,134.11,54.01003325]
[1763955084867,0.15628425,134.12,134.11,84.96737168]
[1763955085078,0.15628425,134.12,134.11,89.01302823]
[1763955085279,0.15628425,134.12,134.11,70.89206823]
[1763955085474,0.14222975,134.13,134.11,222.73578398]
[1763955085710,0.15388487,134.15,134.13,75.57641366]
[1763955085992,0.15388487,134.15,134.14,9.42530271]
[1763955086166,0.15388487,134.15,134.14,63.27905171]
[1763955086774,0.15388487,134.15,134.14,113.27905171]
[1763955087183,0.15388487,134.15,134.14,136.04906914]
[1763955088069,0.15388487,134.15,134.14,135.52415407]
[1763955088293,0.15388487,134.15,134.14,143.503967]
[1763955088875,0.15388487,134.15,134.14,108.324927]
[1763955089080,0.15388487,134.15,134.14,111.624927]
[1763955089891,0.15388487,134.15,134.14,110.924927]
[1763955090497,0.15388487,134.15,134.14,111.624927]
[1763955093193,0.15388487,134.15,134.14,72.72019878]
[1763955093372,0.83388487,134.15,134.14,155.853749]
[1763955093691,0.15151964,134.16,134.15,53.01986413]
[1763955094978,4.83133257,134.16,134.15,53.01986413]
[1763955095692,5.66207682,134.16,134.15,53.01986413]
[1763955096276,5.66207682,134.16,134.11,53.01986413]
[1763955096485,4.67981293,134.13,134.11,53.01986413]
[1763955096685,4.67981293,134.12,134.11,53.01986413]
[1763955097211,4.67981293,134.12,134.05,53.01986413]
[1763955097212,10.03962586,134.12,134.05,53.01986413]
[1763955097424,4.67981293,134.08,134.03,12.84064231]
[1763955097729,4.67981293,134.08,134.04,18.12096]
[1763955097911,0.68,134.07,134.04,18.12096]
[1763955098106,4.67981293,134.09,134.04,22.80077293]
[1763955098288,0.68,134.08,134.04,23.50077293]
[1763955099093,0.68,134.08,134.04,26.80077293]
[1763955100310,0.68,134.11,134.06,4.67981293]
[1763955100608,0.68,134.11,134.07,4.67981293]
[1763955100817,0.68,134.11,134.07,5.37981293]
[1763955101598,0.68,134.11,134.08,5.37981293]
[1763955101922,0.68,134.11,134.08,4.67981293]
[1763955103419,0.68,134.11,134.08,159.69967706]
[1763955103922,0.68,134.11,134.08,155.01986413]
[1763955104132,0.68,134.11,134.08,159.69967706]
[1763955105820,0.68,134.11,134.08,160.38967706]
[1763955106206,4.67981293,134.13,134.09,5.36981293]
[1763955106408,0.71,134.13,134.09,160.38967706]
[1763955107219,0.71,134.13,134.1,5.36981293]
[1763955108730,0.71,134.13,134.09,155.01986413]
[1763955108914,5.38981293,134.13,134.09,155.01986413]
[1763955109103,4.67981293,134.12,134.09,155.01986413]
[1763955109306,5.35981293,134.12,134.09,155.01986413]
[1763955109627,0.68,134.11,134.09,155.01986413]
[1763955110329,5.35981293,134.13,134.09,155.01986413]
[1763955110527,0.68,134.12,134.09,155.01986413]
[1763955111103,5.35981293,134.12,134.09,155.01986413]
[1763955111310,5.35981293,134.12,134.09,53.01986413]
[1763955111632,0.68,134.11,134.09,53.01986413]
[1763955112224,4.67981293,134.13,134.09,155.70986413]
[1763955112601,5.35981293,134.13,134.09,155.70986413]
[1763955113030,0.99484723,134.16,134.09,167.15709771]
[1763955113233,4.67981293,134.12,134.09,53.01986413]
[1763955113610,0.68,134.11,134.09,53.01986413]
[1763955114736,1.99999999,134.15,134.09,53.01986413]
[1763955114737,5.35981293,134.15,134.1,5.36981293]
[1763955114913,0.68,134.14,134.09,60.99967706]
[1763955115254,5.35981293,134.14,134.09,61.68967706]
[1763955115632,0.14034288,134.1,134.09,61.68967706]
[1763955116004,0.14034288,134.1,134.09,57.00986413]
[1763955116205,0.14034288,134.1,134.09,61.68967706]
[1763955117329,0.14034288,134.1,134.09,69.14735473]
[1763955117908,0.14034288,134.1,134.09,64.4675418]
[1763955118104,0.14034288,134.1,134.09,69.14735473]
[1763955118824,0.14034288,134.1,134.09,119.14735473]
[1763955119024,0.13621432,134.11,134.09,119.14735473]
[1763955119346,0.13621432,134.11,134.1,6.11552508]
[1763955120436,0.15516232,134.13,134.11,60.04962586]
[1763955120648,0.1489307,134.17,134.15,54.67981293]
[1763955120950,0.1489307,134.17,134.16,7.45378652]
[1763955121109,0.1489307,134.17,134.15,62.1]
[1763955121307,0.8289307,134.17,134.15,3.3]
[1763955121723,0.8289307,134.17,134.14,7.97981293]
[1763955122227,0.1489307,134.17,134.14,8.66981293]
[1763955122622,0.8289307,134.17,134.12,7.4558933]
[1763955122813,0.8289307,134.17,134.13,7.97981293]
[1763955123635,5.50874363,134.17,134.13,18.12096]
[1763955124145,0.68,134.16,134.13,18.12096]
[1763955125133,4.67981293,134.15,134.13,18.12096]
[1763955125340,5.35981293,134.16,134.13,18.12096]
[1763955125522,0.68,134.15,134.13,18.12096]
[1763955126155,0.1489307,134.17,134.12,4.67981293]
[1763955126456,0.8289307,134.17,134.13,4.67981293]
[1763955127349,0.8289307,134.17,134.11,11.44617057]
[1763955127350,0.1489307,134.17,134.16,4.67981293]
[1763955127516,0.1489307,134.17,134.16,57.97981293]
[1763955127712,0.1489307,134.17,134.16,58.66981293]
[1763955128648,0.1489307,134.17,134.16,61.1104131]
[1763955129258,0.1489307,134.17,134.16,18.56419962]